Cogmind - Beta 13 @@@ ROGUE MODE // 2024.07.02 @ 10:19:17 Player: Jazzer Result: Destroyed by JB-HIJ(R) with Subdweller Shrapnel Launcher Performance ------------- Evolutions (0) 0 Regions Visited (2) 400 Robots Destroyed (24) 120 Value Destroyed (599) 599 Prototype IDs (2) 40 Alien Tech Used (0) 0 Bonus (0) 0 TOTAL SCORE: 1159 Bonus ------- None Cogmind --------- Core Integrity 0/250 Matter 290/300 Energy 250/250 System Corruption 0% Temperature Cool (0) Movement Rolling (107) Ox1 Location -10/Subcaves Parts ------- > --- POWER (1) -------- Ion Engine > --- PROPULSION (2) --- Wheel Subdweller Monowheel > --- UTILITY (2) ------ Disposable Heat Sink High-capacity Storage Unit > --- WEAPON (2) ------- Makeshift Laser Light Cannon > --- INVENTORY (20) --- Ion Engine Light Ion Engine Light Treads Light Treads Compact Wheel Subdweller Optics EM Pulse Gun Small Laser Battle Rifle Battle Rifle Grenade Launcher Subdweller Shrapnel Launcher Peak State ------------ > --- POWER ------------ Ion Engine > --- PROPULSION ------- Wheel Subdweller Monowheel > --- UTILITY ---------- High-capacity Storage Unit Subdweller Optics > --- WEAPON ----------- Makeshift Laser Light Cannon > --- INVENTORY -------- Ion Engine Light Ion Engine Light Treads Light Treads Compact Wheel Disposable Heat Sink EM Pulse Gun Small Laser Battle Rifle Battle Rifle Grenade Launcher Subdweller Shrapnel Launcher [Rating: 13] Favorites ----------- Power Ion Engine Engine Ion Engine Propulsion Wheel Leg Aluminum Leg Wheel Wheel Utility High-capacity Storage Unit Device Improved Heat Sink Storage High-capacity Storage Unit Protection Light Armor Plating Weapon Beam Cannon Energy Gun EM Pulse Gun Energy Cannon Beam Cannon Ballistic Cannon Light Cannon Build | -11 -10 -10 ------- Run | Yrd Mat Sub Slots Evolved . | . . . Power . | . . . Propulsion . | . . . Utility . | . . . Weapon . | . . . Parts Attached 19 | . 10 9 Power 3 | . 2 1 Engine 3 | . 2 1 Core . | . . . Reactor . | . . . Propulsion 6 | . 4 2 Treads . | . . . Leg . | . . . Wheel 6 | . 4 2 Hover . | . . . Flight . | . . . Utility 6 | . 3 3 Device 4 | . 2 2 Storage 1 | . 1 . Processor . | . . . Hackware . | . . . Protection 1 | . . 1 Artifact . | . . . Weapon 4 | . 1 3 Energy Gun 1 | . . 1 Energy Cannon 1 | . 1 . Ballistic Gun . | . . . Ballistic Cannon 2 | . . 2 Launcher . | . . . Special Weapon . | . . . Impact Weapon . | . . . Slashing Weapon . | . . . Piercing Weapon . | . . . Special Melee Weapon . | . . . Unidentified Prototypes . | . . . Parts Lost 8 | . 1 7 Power 1 | . . 1 Propulsion 2 | . . 2 Utility 2 | . . 2 Weapon 3 | . 1 2 Highest Loss Streak 5 | . 1 5 To Critical Strikes . | . . . Average Slot Usage (%) 93 | . 95 92 Engine 13 | . 14 13 Leg 5 | . 10 . Wheel 20 | . 17 24 Device 11 | . 12 10 Storage 14 | . 14 14 Energy Gun 9 | . 13 5 Energy Cannon 9 | . 11 8 Ballistic Cannon 7 | . . 14 Naked Turns . | . . . Heaviest Build 52 | 12 51 52 Greatest Support 30 | 20 26 30 Greatest Overweight (x) 5 | . 2 5 Average Overweight (x) 1 | . . 2 Largest Inventory Capacity 20 | 8 20 20 Average Capacity 17 | 8 15 20 Most Carried 16 | 6 16 12 Average Carried 10 | 6 9 11 Final Capacity 20 | 8 20 20 Final Carried 13 | 6 13 12 Class Distribution -------------------- 76% | Mutant 23% | Scavenger-Mutant Dominant Class ---------------- Mutant | -10/Materials Mutant | -10/Subcaves Resources | -11 -10 -10 ----------- Run | Yrd Mat Sub Matter Collected 474 | 200 100 174 Remotely . | . . . Salvage Created 670 | . 510 160 Parts 46 | . 36 10 Haulers Intercepted 2 | . 2 . Recyclers Shooed 1 | . 1 . Parts Field Recycled . | . . . Retrieved Matter . | . . . Parts Self-Destructed 12 | . . 12 Prevented . | . . . Kills | -11 -10 -10 ------- Run | Yrd Mat Sub Combat Hostiles Destroyed 20 | . 13 7 Cannons 20 | . 13 7 Classes Destroyed 6 | . 5 1 Worker 1 | . 1 . Builder 1 | . 1 . Hauler 2 | . 2 . Swarmer 6 | . 4 2 Grunt 9 | . 9 . Subdweller 5 | . . 5 Best Kill Streak 3 | . 3 2 Combat Bots Only 3 | . 3 2 Max Kills in Single Turn 1 | . 1 1 Gunslinging . | . . . Exploded . | . . . Melee . | . . . Uniques/NPCs Destroyed . | . . . Combat | -11 -10 -10 -------- Run | Yrd Mat Sub Hostile Shots Fired 86 | . 43 43 Missed 27 | . 14 13 Damage Taken 1078 | . 331 747 Core 277 | . 58 219 Absorbed by Shields . | . . . Core Remaining (%) 100 | 100 . . Volleys Fired 96 | . 56 40 Largest 2 | . 1 2 Hottest 95 | . 60 95 Shots Fired 121 | . 56 65 Gun 6 | . . 6 Cannon 115 | . 56 59 Launcher . | . . . Special . | . . . Kinetic 30 | . . 30 Thermal 91 | . 56 35 Explosive . | . . . Electromagnetic . | . . . Robot Hit Streak 11 | . 8 11 Robot Miss Streak 2 | . 2 2 Penetration Max . | . . . Secondary Targets . | . . . Shots Hit Robots 80 | . 40 40 Core Hits 29 | . 18 11 Critical Kills . | . . . Critical Parts Destroyed . | . . . Critical Strikes . | . . . Melee Attacks . | . . . Impact . | . . . Slashing . | . . . Piercing . | . . . Sneak Attacks . | . . . Combat Hostiles . | . . . Follow-up Attacks . | . . . Damage Inflicted 1426 | . 718 708 Guns 89 | . . 89 Cannons 1326 | . 707 619 Explosions . | . . . Melee . | . . . Ramming 11 | . 11 . Kinetic 357 | . . 357 Thermal 1058 | . 707 351 Explosive . | . . . Electromagnetic . | . . . Impact . | . . . Slashing . | . . . Piercing . | . . . Highest Corruption . | . . . Average Corruption . | . . . Corruption Purged . | . . . Corruption Blocked . | . . . Overload Shots . | . . . Overflow Damage 18 | . . 18 Projectiles 18 | . . 18 Explosions . | . . . Melee . | . . . Knockbacks 7 | . . 7 Impact . | . . . Kinetic 7 | . . 7 Secondary . | . . . Self-Inflicted Damage 11 | . 11 . Shots . | . . . Rammed . | . . . Targets Rammed . | . . . Kicked . | . . . Crushed . | . . . Highest Temperature 27 | . 27 . Average Temperature 8 | . 8 . Received Heat Transfer 147 | . 117 30 Siege Activations . | . . . Robots Corrupted . | . . . Combat Hostiles . | . . . Parts Fried . | . . . Impact Corruptions . | . . . Robots Melted . | . . . Combat Hostiles . | . . . Parts Melted 1 | . 1 . Heat Transferred 2220 | . 1480 740 Parts Sabotaged . | . . . Parts Stolen . | . . . Parts Stripped . | . . . Power Chain Reactions . | . . . Alert | -11 -10 -10 ------- Run | Yrd Mat Sub Peak Influence 328 | . 328 . Initial . | . . . Average 121 | . 122 . Maximum Alert Level 1 | . 1 . Low Security (%) 71 | 100 70 . Level 1 28 | . 29 . Level 2 . | . . . Level 3 . | . . . Level 4 . | . . . Level 5 . | . . . High Security . | . . . Max Security . | . . . Squads Dispatched 5 | . 5 . Investigation 3 | . 3 . Extermination . | . . . Reinforcement 2 | . 2 . Assault . | . . . Garrison . | . . . Intercept . | . . . Searches Triggered . | . . . Construction Impeded . | . . . Haulers Reinforced . | . . . Active Scanning Responses . | . . . Cargo Convoy Interrupts . | . . . Stealth | -11 -10 -10 --------- Run | Yrd Mat Sub Distress Signals 4 | . 4 . Communications Jammed . | . . . Distress Signals . | . . . Times Spotted 39 | . 22 17 Peak Tracking Total 6 | . 4 6 Tactical Retreats 3 | . 2 1 Traps | -11 -10 -10 ------- Run | Yrd Mat Sub Traps Triggered 3 | . 1 2 Indirectly . | . . . Trap Hack Attempts . | . . . Triggered . | . . . Disarmed . | . . . Reprogrammed . | . . . Reused . | . . . Traps Extracted . | . . . Installed 1 | . . 1 Triggered . | . . . Most Traps Carried 1 | . . 1 Machines | -11 -10 -10 ---------- Run | Yrd Mat Sub Machines Disabled 1 | . 1 . Max in Single Turn 1 | . 1 . Machines Repaired . | . . . Machines Dismantled . | . . . Machines Sabotaged . | . . . Overloaded Fab Kills . | . . . Hacking | -11 -10 -10 --------- Run | Yrd Mat Sub Machines Accessed 8 | . 8 . Terminals 7 | . 7 . Fabricators . | . . . Repair Stations 1 | . 1 . Recycling Units . | . . . Scanalyzers . | . . . Garrison Access . | . . . Total Hacks 30 | . 30 . Successful 17 | . 17 . Failed 13 | . 13 . Catastrophic . | . . . Database Lockouts . | . . . Manual 23 | . 23 . Terminals 29 | . 29 . Fabricators . | . . . Repair Stations 1 | . 1 . Recycling Units . | . . . Scanalyzers . | . . . Garrison Access . | . . . Terminal Hacks 10 | . 10 . Robot Analysis 3 | . 3 . Prototype ID Bank 1 | . 1 . Emergency Access Points 1 | . 1 . Terminal Index 1 | . 1 . Alert Level 1 | . 1 . Locate Traps 2 | . 2 . Registered Components 1 | . 1 . Fabricator Hacks . | . . . Repair Station Hacks 1 | . 1 . Refit 1 | . 1 . Recycling Unit Hacks . | . . . Scanalyzer . | . . . Garrison Access Hacks . | . . . Unauthorized Hacks 6 | . 6 . Terminals 6 | . 6 . Track 1 | . 1 . Assimilate 1 | . 1 . Botnet 3 | . 3 . Disrupt 1 | . 1 . Fabricators . | . . . Repair Stations . | . . . Recycling Units . | . . . Scanalyzers . | . . . Garrison Access . | . . . Data Cores Recovered . | . . . Used . | . . . Hacking Detections 8 | . 8 . Full Trace Events 3 | . 3 . Feedback Events . | . . . Feedback Blocked . | . . . Robot Schematics Acquired . | . . . Robots Built . | . . . Authchips . | . . . Time . | . . . Total Robot Build Rating . | . . . Part Schematics Acquired . | . . . Parts Built . | . . . Authchips . | . . . Time . | . . . Total Part Build Rating . | . . . Parts Repaired . | . . . Time . | . . . Parts Recycled . | . . . Recycled Matter . | . . . Retrieved Matter . | . . . Retrieved Components . | . . . Parts Scanalyzed . | . . . Part Schematics Acquired . | . . . Parts Damaged . | . . . Bothacking | -11 -10 -10 ------------ Run | Yrd Mat Sub Used RIF Installer . | . . . Robots Hacked . | . . . Non-combat . | . . . Combat . | . . . Robot Hacks Applied . | . . . Relay Couplers Released . | . . . Fabnet Peak Effective % . | . . . Robots Rewired . | . . . Allies Hacked . | . . . Hacks Repelled . | . . . Allies | -11 -10 -10 -------- Run | Yrd Mat Sub Total Allies . | . . . Largest Group . | . . . Highest-Rated Group . | . . . Highest-Rated Ally . | . . . Total Orders . | . . . Ally Attacks . | . . . Total Damage . | . . . Kills . | . . . Allies Corrupted . | . . . Allies Melted . | . . . Intel | -11 -10 -10 ------- Run | Yrd Mat Sub Robot Analysis Total 3 | . 3 . Derelict Logs Recovered . | . . . Drone Launches . | . . . Drone Recoveries . | . . . Exploration | -11 -10 -10 ------------- Run | Yrd Mat Sub Turns Passed 1804 | 3 878 923 Spaces Moved 1237 | 3 578 656 Core . | . . . Treads . | . . . Legs 255 | 3 252 . Wheels 982 | . 326 656 Hover . | . . . Flight . | . . . Fastest Speed 105 | 120 105 107 Average Speed 114 | 120 112 116 Slowest Speed 155 | 120 120 155 Overloaded Moves . | . . . Propulsion Burnouts . | . . . Robots Hopped . | . . . Cave-ins Triggered . | . . . Exploration Rate (%) 51 | 2 94 58 Regions Visited 2 Branch Regions 1 Pre-discovered Areas 1 | . . 1 Known Exits Taken . | . . . Unknown Exits Taken 2 | 1 1 . Scrap Searched 3 | . . 3 Spaces Dug . | . . . Terrain Destroyed . | . . . Melee . | . . . Projectile . | . . . AOE . | . . . Terrain Rammed 1 | . 1 . Walls Destroyed . | . . . Machines Disabled . | . . . Actions | -11 -10 -10 --------- Run | Yrd Mat Sub Total 1500 | 2 750 748 Wait 127 | . 92 35 Move 1235 | 2 577 656 Hop . | . . . Pick Up 12 | . 6 6 Fast Attach 4 | . 2 2 Attach 6 | . . 6 Detach 1 | . 1 . Swap 9 | . 8 1 Drop 8 | . 7 1 Fire 96 | . 56 40 Melee . | . . . Ram 1 | . 1 . Kick . | . . . Crush . | . . . Escape Stasis . | . . . Rewire . | . . . Trap 1 | . . 1 Miscellaneous . | . . . Route ------- -11/Scrapyard -10/Materials (discovered 6 exits: [*Mat x3] / [*Min x2] / [*Sub]) -10/Subcaves (discovered 1 exit: [*Rec]) History --------- Turn | Location | Event 1 | -11/Scrapyard | Discovered new exit (range 3) 4 | -11/Scrapyard | Entered Materials 133 | -10/Materials | Discovered new exit (range 12) 217 | -10/Materials | Discovered new exit (range 12) 323 | -10/Materials | Build established: Mutant 396 | -10/Materials | Discovered new exit (range 10) 574 | -10/Materials | Discovered new exit (range 5) 635 | -10/Materials | Discovered new exit (range 6) 871 | -10/Materials | Discovered new exit (range 7) 882 | -10/Materials | Entered Subcaves 907 | -10/Subcaves | Discovered new exit (range 13) 1055 | -10/Subcaves | Build established: Scavenger-Mutant 1177 | -10/Subcaves | Disturbed a concealed Subdweller 1180 | -10/Subcaves | Ambushed by Subdweller buried in earth 1189 | -10/Subcaves | Core integrity fell below 50% 1242 | -10/Subcaves | Lost 5 parts (1p1n2u1w) 1287 | -10/Subcaves | Learned location of Zion (-7) 1287 | -10/Subcaves | Met a Zionite searching for "candidates" 1359 | -10/Subcaves | A swath of the cavern ceiling suddenly collapsed 1417 | -10/Subcaves | Core integrity fell below 20% 1480 | -10/Subcaves | Build established: Mutant 1805 | -10/Subcaves | Destroyed by JB-HIJ(R) with Subdweller Shrapnel Launcher Last Messages --------------- 01412_ Beam Cannon destroyed. 01416_ Destroyed Scrap Shield. 01416_ 3B-VPU(R) destroyed. 01421_ Acquired Sub. Optics. 01424_ Acquired Disposable Heat Sink. 01425_ Acquired 23 matter. 01426_ Acquired 2 matter. 01428_ Acquired 3 matter. 01433_ Acquired Battle Rifle. 01574_ MT-8M7(R) destroyed. 01585_ Acquired 8 matter. 01587_ Subatomizers dissect the Disposable Heat Sink. 01605_ Acquired 3 matter. 01607_ 8N-MQC(R) destroyed. 01610_ Acquired 5 matter. 01611_ Subatomizers dissect the Disposable Heat Sink. 01613_ Acquired Sub. Monowheel. 01617_ Acquired 10 matter. 01635_ Subatomizers dissect the Disposable Heat Sink. 01697_ Sub. Optics shoots sparks and powers down. Map ----- +----------------------------------------------------+ | ?????????????????????????????????????????????????? | | ?????????????????????????????????????????????????? | | ?????????????????????????????????????????????????? | | ?????????????????????????????????????????????????? | | ?????????????????????????????????????????????????? | | ?????????????????????????????????????????????????? | | ?????????????????????????????????????????????????? | | ?????????????????????????????????????????????????? | | ?????????????????????????????????????????????????? | | ?????????????????????????????????????????????????? | | ?????????????????????????????????????????????????? | | ?????????????????????????????????????????????????? | | ?????????????????????????????????????????????????? | | ?????????????????????????????????????????????????? | | ???????????????????????????????????????##????????? | | ???????????????????????????????????????# ##??????? | | ????????????????????????????????###????# ##?????? | | ???????????????????????????????## #####? #?????? | | ?????????????"###??????????????# #?# ##????? | | ?????????????"R " ????????????# ### ##?### | | ?????????????"" "??????###### ## ### # | | ????????????# " "?????# ## ### | | ?????????????# ##### ## | | ?????????????# | | ???????????# ### | | ??????????# @##?# ### ## | | ??????????# ##??#### #?#### ## | | ???????????? ## #??###??## #????######## | | ??????????????##### ####??## ##??## #???????????## | | ??????????????????#?????### #######?????###?#### | | ???????????????????????## #######?## ### | | ???????????????????????# ## ### | | ??????????????????????## | | ??????????????????????# ### | | ?????????????????????## ##?# | | ????????????????????## ##??# | | ????????????????????# #???##### # | | ????????????????????# #???????## # | | ????????????????????# ## #???????# ## # | | ????????????????????# #?## #???????## #### # | | ????????????????????##???#####????????#####??##### | | ?????????????????????????????????????????????????? | | ?????????????????????????????????????????????????? | | ?????????????????????????????????????????????????? | | ?????????????????????????????????????????????????? | | ?????????????????????????????????????????????????? | | ?????????????????????????????????????????????????? | | ?????????????????????????????????????????????????? | | ?????????????????????????????????????????????????? | | ?????????????????????????????????????????????????? | +----------------------------------------------------+ Best States ------------- Heat Dissipation 39 Coolant Potential 50 Energy Generation 10 Energy Capacity 250 Matter Stores 300 Matter Capacity 300 Sight Range 21 Terrain Scan Density 10 Armor Coverage 150 Evasion (%) 55 Item Schematics ----------------- None Robot Schematics ------------------ None Fabricated ------------ Nothing Alien Tech Used ----------------- None Achievements -------------- None Challenges ------------ None Game ------ Seed IntegrityTerrabombBuckler Manual? 0 Play Time 00:24:27 Cumulative 291.8 hours Start 2024.07.02 @ 09:52:56 End 2024.07.02 @ 10:19:17 Sessions 1 Manual Loads 0 Difficulty Rogue Special Mode None Game No. 167 Rogue 167 Adventurer 0 Explorer 0 Win Type - Total 2 Types 2/0/0/0/0/0/0/0/0 Lore% 50 Gallery% 60 Achievement% 34 Wizard Run 0 Options --------- Layout 0 ASCII 0 Keyboard 1 Movement Numpad Keybinds 0 Fullscreen 2 Font 18/SmallcapsGlow Map View 76x50 Zoom Use 0% Tactical HUD 1 Map Filters NONE Filters NONE Steam 1 RUN: 225d57b4-ab86-4aa3-b192-b79ef0680df2